Cogmind - Beta 15 --- EXPLORER MODE // 2025.07.18 @ 11:21:16 Player: rootmos Result: Destroyed by ZE-F13(R) with Subdweller Beam Cannon Performance ------------- Evolutions (0) 0 Regions Visited (3) 600 Robots Destroyed (27) 135 Value Destroyed (867) 867 Prototype IDs (12) 240 Alien Tech Used (0) 0 Bonus (-38) -38 TOTAL SCORE: 1804 Bonus ------- Friendly Fire -38 Cogmind --------- Core Integrity 0/250 Matter 81/300 Energy 140/140 System Corruption 0% Temperature Cool (9) Movement Walking (120) Location -10/Subcaves Parts ------- > --- POWER (1) -------- Light Deuterium Engine > --- PROPULSION (3) --- Aluminum Leg Aluminum Leg Aluminum Leg > --- UTILITY (2) ------ Medium Storage Unit Targeting Computer > --- WEAPON (2) ------- Improved Medium Laser Improved Grenade Launcher > --- INVENTORY (10) --- Light Deuterium Engine Aluminum Leg Aluminum Leg Aluminum Leg Improved Heat Sink Medium Storage Unit Core Shielding Light Assault Rifle Battle Cannon Datajack Peak State ------------ > --- POWER ------------ Light Deuterium Engine > --- PROPULSION ------- Aluminum Leg Aluminum Leg Aluminum Leg > --- UTILITY ---------- Medium Storage Unit Targeting Computer > --- WEAPON ----------- Improved Medium Laser Improved Grenade Launcher > --- INVENTORY -------- Light Deuterium Engine Aluminum Leg Aluminum Leg Aluminum Leg Improved Heat Sink Medium Storage Unit Core Shielding Light Assault Rifle Battle Cannon Datajack [Rating: 15] Favorites ----------- Power Light Deuterium Engine Engine Light Deuterium Engine Propulsion Aluminum Leg Leg Aluminum Leg Utility Medium Storage Unit Storage Medium Storage Unit Processor Targeting Computer Weapon Assault Rifle Energy Gun Improved Medium Laser Ballistic Gun Assault Rifle Ballistic Cannon Battle Cannon Launcher Improved Grenade Launcher Special Melee Weapon Datajack Build | -11 -10 -10 -10 ------- Run | Yrd Mat Min Sub Slots Evolved 1 | . 1 . . Power . | . . . . Propulsion 1 | . 1 . . Utility . | . . . . Weapon . | . . . . Parts Attached 21 | 8 5 3 5 Power 2 | 1 . 1 . Engine 2 | 1 . 1 . Core . | . . . . Reactor . | . . . . Propulsion 5 | 2 1 . 2 Treads . | . . . . Leg 5 | 2 1 . 2 Wheel . | . . . . Hover . | . . . . Flight . | . . . . Utility 2 | 2 . . . Device . | . . . . Storage 1 | 1 . . . Processor 1 | 1 . . . Hackware . | . . . . Protection . | . . . . Artifact . | . . . . Weapon 12 | 3 4 2 3 Energy Gun 4 | 2 2 . . Energy Cannon . | . . . . Ballistic Gun 4 | 1 1 1 1 Ballistic Cannon 1 | . . . 1 Launcher 2 | . 1 1 . Special Weapon . | . . . . Impact Weapon . | . . . . Slashing Weapon . | . . . . Piercing Weapon . | . . . . Special Melee Weapon 1 | . . . 1 Unidentified Prototypes 1 | . 1 . . Parts Lost 2 | . . . 2 Power . | . . . . Propulsion . | . . . . Utility . | . . . . Weapon 2 | . . . 2 Highest Loss Streak 2 | . . . 2 To Critical Strikes . | . . . . Average Backups 9 | 1 8 9 9 Power . | . 1 . 1 Propulsion 1 | . 1 2 2 Utility 2 | . 1 3 3 Weapon 2 | . 4 3 2 Tool/Special . | . . . . Unused Backups 15 | . 5 3 7 Power 3 | . . 2 1 Propulsion 5 | . 2 . 3 Utility 3 | . . . 3 Weapon 4 | . 3 1 . Tool/Special . | . . . . Average Slot Usage (%) 99 | . 99 100 99 Engine 12 | . 12 12 12 Leg 36 | . 36 37 37 Storage 12 | . 12 12 12 Processor 12 | . 12 12 12 Energy Gun 11 | . 12 11 11 Ballistic Gun 7 | . 11 11 1 Ballistic Cannon 4 | . . . 8 Peak Build Rating 15 | 7 11 14 15 Average Rating 12 | 5 9 11 13 On Entrance 7 | . 7 10 12 Naked Turns . | . . . . Heaviest Build 24 | 17 18 23 24 Greatest Support 30 | 20 30 30 30 Greatest Overweight (x) 4 | 4 . . . Average Overweight (x) . | . . . . Largest Inventory Capacity 10 | 10 10 10 10 Average Capacity 9 | 9 10 10 10 Most Carried 10 | 2 10 10 10 Average Carried 9 | 1 8 9 9 Final Capacity 10 | 10 10 10 10 Final Carried 10 | 2 10 10 10 Class Distribution -------------------- 100% | Hacker-Mutant Dominant Class ---------------- Hacker-Mutant | -10/Materials Hacker-Mutant | -10/Mines Hacker-Mutant | -10/Subcaves Resources | -11 -10 -10 -10 ----------- Run | Yrd Mat Min Sub Matter Collected 781 | 214 191 120 256 Remotely . | . . . . Salvage Created 840 | . 303 277 260 Parts 52 | . 18 17 17 Haulers Intercepted . | . . . . Recyclers Shooed . | . . . . Parts Field Recycled . | . . . . Retrieved Matter . | . . . . Parts Self-Destructed . | . . . . Prevented . | . . . . Kills | -11 -10 -10 -10 ------- Run | Yrd Mat Min Sub Combat Hostiles Destroyed 26 | . 8 10 8 Guns 16 | . 8 6 2 Cannons 2 | . . . 2 AOE 8 | . . 4 4 Classes Destroyed 6 | . 2 1 3 Worker 1 | . . 1 . Swarmer 6 | . 2 4 . Grunt 14 | . 6 6 2 Sentry 1 | . . . 1 Artisan 1 | . . . 1 Subdweller 5 | . . . 5 Best Kill Streak 5 | . 2 5 2 Combat Bots Only 4 | . 2 4 2 Max Kills in Single Turn 3 | . 1 3 1 Gunslinging . | . . . . Exploded 2 | . . 2 1 Melee . | . . . . Uniques/NPCs Destroyed . | . . . . Combat | -11 -10 -10 -10 -------- Run | Yrd Mat Min Sub Hostile Shots Fired 77 | . 16 17 44 Missed 22 | . 3 9 10 Hits 55 | . 13 8 34 Projectile 55 | . 13 8 34 Critical Strikes 1 | . . . 1 Damage Taken 773 | . 112 48 613 Core 250 | . 54 4 192 Absorbed by Shields . | . . . . Ignored by Resistances 420 | . 71 35 314 Core Remaining (%) 100 | 100 . . . Volleys Fired 66 | . 13 9 44 Largest 2 | . 2 2 2 Hottest 92 | . 89 81 92 Shots Fired 109 | . 26 18 65 Gun 79 | . 24 15 40 Cannon 5 | . . . 5 Launcher 25 | . 2 3 20 Special . | . . . . Kinetic 33 | . 11 7 15 Thermal 27 | . 6 . 21 Explosive 25 | . 2 3 20 Electromagnetic 24 | . 7 8 9 Robot Hit Streak 51 | . 12 12 51 Robot Miss Streak 1 | . 1 1 1 Penetration Max . | . . . . Secondary Targets 2 | . . 2 . Max Gunslinging Chain 1 | . . 1 . Shots Hit Robots 78 | . 19 15 44 Core Hits 45 | . 14 16 15 Critical Kills . | . . . . Critical Parts Destroyed . | . . . . Critical Strikes 5 | . 2 . 3 Burn 4 | . 2 . 2 Blast 1 | . . . 1 Melee Attacks 17 | . . . 17 Impact . | . . . . Slashing . | . . . . Piercing . | . . . . Sneak Attacks . | . . . . Combat Hostiles . | . . . . Follow-up Attacks . | . . . . Damage Inflicted 2029 | . 291 497 1241 Guns 674 | . 264 159 251 Cannons 121 | . . . 121 Explosions 1234 | . 27 338 869 Melee . | . . . . Ramming . | . . . . Kinetic 236 | . 62 41 133 Thermal 342 | . 103 . 239 Explosive 1234 | . 27 338 869 Electromagnetic 217 | . 99 118 . Impact . | . . . . Slashing . | . . . . Piercing . | . . . . Highest Corruption . | . . . . Average Corruption . | . . . . Corruption Purged . | . . . . Corruption Blocked . | . . . . Overload Shots . | . . . . Overflow Damage 3 | . . . 3 Projectiles 3 | . . . 3 Explosions . | . . . . Melee . | . . . . Knockbacks 2 | . . . 2 Impact . | . . . . Kinetic 2 | . . . 2 Secondary . | . . . . Self-Inflicted Damage 74 | . 6 11 57 Shots 6 | . 1 1 4 Rammed . | . . . . Targets Rammed . | . . . . Kicked . | . . . . Crushed . | . . . . Highest Temperature 66 | . 66 53 . Average Temperature 23 | . 30 14 . Received Heat Transfer 237 | . 75 12 150 Siege Activations . | . . . . Martial Activations . | . . . . Shielding Activations . | . . . . Robots Disrupted . | . . . . Combat Hostiles . | . . . . Robots Corrupted . | . . . . Combat Hostiles . | . . . . Parts Fried . | . . . . Impact Corruptions . | . . . . Robots Melted . | . . . . Combat Hostiles . | . . . . Parts Melted . | . . . . Heat Transferred 1036 | . 370 . 666 Parts Sabotaged . | . . . . Parts Stolen . | . . . . Parts Stripped . | . . . . Power Chain Reactions . | . . . . Alert | -11 -10 -10 -10 ------- Run | Yrd Mat Min Sub Maximum Alert Level . | . . . . Low Security (%) 100 | 100 100 100 . Level 1 . | . . . . Level 2 . | . . . . Level 3 . | . . . . Level 4 . | . . . . Level 5 . | . . . . High Security . | . . . . Max Security . | . . . . Peak Influence 125 | . 67 125 . Initial . | . . . . Average 15 | . 9 23 . Influence Increases 608 | . 244 294 70 Destroy 0b10 Robot/C 420 | . 160 200 60 Destroy 0b10 Robot/NC 5 | . . 5 . Destroy Leader 100 | . 40 50 10 Successful Hack 10 | . 10 . . Disable Machine 8 | . 4 4 . Destroy Structure 50 | . 15 35 . Lose Combat Pursuer 15 | . 15 . . Influence Decreases 608 | . 244 294 70 Time Decay 608 | . 244 294 70 Squads Dispatched 2 | . 1 1 . Investigation 2 | . 1 1 . Extermination . | . . . . Reinforcement . | . . . . Assault . | . . . . Garrison . | . . . . Intercept . | . . . . Searches Triggered . | . . . . Construction Impeded . | . . . . Haulers Reinforced . | . . . . Active Scanning Responses . | . . . . Cargo Convoy Interrupts . | . . . . Stealth | -11 -10 -10 -10 --------- Run | Yrd Mat Min Sub Distress Signals . | . . . . Communications Jammed . | . . . . Distress Signals . | . . . . Times Spotted 33 | . 14 10 9 Peak Tracking Total 3 | . 3 3 2 Tactical Retreats 1 | . 1 . . Traps | -11 -10 -10 -10 ------- Run | Yrd Mat Min Sub Traps Triggered 4 | . 2 . 2 Indirectly . | . . . . Trap Hack Attempts . | . . . . Triggered . | . . . . Disarmed 3 | . 3 . . Reprogrammed . | . . . . Reused . | . . . . Traps Extracted . | . . . . Installed . | . . . . Triggered . | . . . . Machines | -11 -10 -10 -10 ---------- Run | Yrd Mat Min Sub Machines Disabled 6 | . 1 1 4 Max in Single Turn 3 | . 1 1 3 Machines Repaired . | . . . . Machines Dismantled . | . . . . Machines Sabotaged . | . . . . Overloaded Fab Kills . | . . . . Hacking | -11 -10 -10 -10 --------- Run | Yrd Mat Min Sub Machines Accessed 10 | . 5 1 4 Terminals 5 | . 5 . . Fabricators . | . . . . Repair Stations . | . . . . Recycling Units . | . . . . Scanalyzers . | . . . . Garrison Access . | . . . . Total Hacks 18 | . 9 1 8 Successful 16 | . 7 1 8 Failed 2 | . 2 . . Catastrophic . | . . . . Database Lockouts . | . . . . Manual . | . . . . Terminals 9 | . 9 . . Fabricators . | . . . . Repair Stations . | . . . . Recycling Units . | . . . . Scanalyzers . | . . . . Garrison Access . | . . . . Terminal Hacks 16 | . 7 1 8 Record 5 | . . . 5 Robot Analysis 1 | . 1 . . Open Door 2 | . . 1 1 Branch Access Points 1 | . 1 . . Locate Traps 3 | . 3 . . Disarm Traps 2 | . 2 . . Proto ID Catalog 1 | . . . 1 Release Object 1 | . . . 1 Fabricator Hacks . | . . . . Repair Station Hacks . | . . . . Recycling Unit Hacks . | . . . . Scanalyzer . | . . . . Garrison Access Hacks . | . . . . Unauthorized Hacks . | . . . . Terminals . | . . . . Fabricators . | . . . . Repair Stations . | . . . . Recycling Units . | . . . . Scanalyzers . | . . . . Garrison Access . | . . . . Data Cores Recovered . | . . . . Used . | . . . . Hacking Detections 2 | . 2 . . Full Trace Events 1 | . 1 . . Feedback Events . | . . . . Feedback Blocked . | . . . . Robot Schematics Acquired . | . . . . Robots Built . | . . . . Authchips . | . . . . Time . | . . . . Total Robot Build Rating . | . . . . Part Schematics Acquired . | . . . . Parts Built . | . . . . Authchips . | . . . . Time . | . . . . Total Part Build Rating . | . . . . Parts Repaired . | . . . . Time . | . . . . Parts Recycled . | . . . . Recycled Matter . | . . . . Retrieved Matter . | . . . . Retrieved Components . | . . . . Parts Scanalyzed . | . . . . Part Schematics Acquired . | . . . . Parts Damaged . | . . . . Bothacking | -11 -10 -10 -10 ------------ Run | Yrd Mat Min Sub Used RIF Installer . | . . . . Robots Hacked . | . . . . Non-combat . | . . . . Combat . | . . . . Robot Hacks Applied . | . . . . Relay Couplers Released . | . . . . Fabnet Peak Effective % . | . . . . Robots Rewired . | . . . . Allies Hacked . | . . . . Hacks Repelled . | . . . . Allies | -11 -10 -10 -10 -------- Run | Yrd Mat Min Sub Total Allies . | . . . . Largest Group . | . . . . Highest-Rated Group . | . . . . Highest-Rated Ally . | . . . . Total Orders . | . . . . Ally Attacks . | . . . . Total Damage . | . . . . Kills . | . . . . Allies Corrupted . | . . . . Allies Melted . | . . . . Intel | -11 -10 -10 -10 ------- Run | Yrd Mat Min Sub Active Infowar (turns) . | . . . . Robot Analysis Total 1 | . 1 . . Derelict Logs Recovered 1 | . . . 1 Drone Launches . | . . . . Drone Recoveries . | . . . . Exploration | -11 -10 -10 -10 ------------- Run | Yrd Mat Min Sub Turns Passed 3433 | 69 855 889 1620 Spaces Moved 2583 | 42 644 703 1194 Core 6 | 6 . . . Treads . | . . . . Legs 2577 | 36 644 703 1194 Wheels . | . . . . Hover . | . . . . Flight . | . . . . Fastest Speed 50 | 50 120 120 120 Average Speed 120 | 133 120 120 120 Slowest Speed 250 | 250 120 120 120 Overloaded Moves . | . . . . Propulsion Burnouts . | . . . . Robots Hopped . | . . . . Potential Cave-ins . | . . . . Cave-ins Triggered . | . . . . Exploration Rate (%) 60 | 4 95 98 46 Regions Visited 3 Branch Regions 2 Pre-discovered Areas 1 | . . . 1 Known Exits Taken 3 | 1 1 1 . Unknown Exits Taken . | . . . . Scrap Searched 6 | . . 1 5 Spaces Dug . | . . . . Terrain Destroyed 171 | . 14 39 118 Melee . | . . . . Projectile . | . . . . AOE 171 | . 14 39 118 Terrain Rammed . | . . . . Walls Destroyed . | . . . . Machines Disabled . | . . . . Actions | -11 -10 -10 -10 --------- Run | Yrd Mat Min Sub Total 2794 | 51 706 736 1301 Wait 44 | . 18 4 22 Move 2580 | 41 643 702 1194 Hop . | . . . . Pick Up 28 | 2 16 7 3 Fast Attach 9 | 7 2 . . Attach 2 | . . . 2 Detach . | . . . . Swap 27 | 1 5 6 15 Drop 20 | . 9 8 3 Fire 66 | . 13 9 44 Melee 17 | . . . 17 Ram . | . . . . Kick . | . . . . Crush . | . . . . Escape Stasis . | . . . . Rewire . | . . . . Trap . | . . . . Miscellaneous 1 | . . . 1 Route ------- -11/Scrapyard -10/Materials (discovered 4 exits: *Mat x3 / *Min) -10/Mines (discovered 3 exits: *Mat x2 / *Sub) -10/Subcaves (discovered 1 exit: *Mat) History --------- Turn | Location | Event 9 | -11/Scrapyard | Identified exit to Materials 9 | -11/Scrapyard | Discovered exit to Materials (range 16) 70 | -11/Scrapyard | Entered Materials 70 | -10/Materials | Evolved 1 slot: Propulsion x1 265 | -10/Materials | Identified exit to Materials 265 | -10/Materials | Discovered exit to Materials (range 12) 277 | -10/Materials | Identified exit to Mines 337 | -10/Materials | Build established: Hacker-Mutant 432 | -10/Materials | Discovered exit to Materials (range 8) 676 | -10/Materials | Discovered exit to Materials (range 9) 925 | -10/Materials | Entered Mines 1025 | -10/Mines | Met a Derelict shopkeep closing up shop 1134 | -10/Mines | Discovered exit to Materials (range 4) 1550 | -10/Mines | Discovered exit to Materials (range 5) 1561 | -10/Mines | Identified exit to Subcaves 1561 | -10/Mines | Discovered exit to Subcaves (range 5) 1814 | -10/Mines | Entered Subcaves 1876 | -10/Subcaves | Visited 4L-MR0's lab 2034 | -10/Subcaves | Disturbed a concealed Subdweller 2047 | -10/Subcaves | Disturbed a concealed Subdweller 2051 | -10/Subcaves | Core integrity fell below 50% 2142 | -10/Subcaves | Identified exit to Materials 2142 | -10/Subcaves | Discovered exit to Materials (range 15) 2473 | -10/Subcaves | Released subatomizers from SUBCON Basin 2911 | -10/Subcaves | Visited Clippyterm 2914 | -10/Subcaves | Learned location of Deep Caves (-7) 3041 | -10/Subcaves | Shifting Twisted Machinery released Mak. Flight Unit 3416 | -10/Subcaves | Core integrity fell below 20% 3434 | -10/Subcaves | Destroyed by ZE-F13(R) with Subdweller Beam Cannon Last Messages --------------- World map updated: -7/Deep Caves. >>Record! "Early Bird" It looks like you're searching for a worm, right? Don't bother with early when it comes to the Lifeworm, it's never early, but by some measures it might be just in time... >>Record! "01-MTF" It looks like you're after the notorious thief from 0b1. I don't know where they are, but my data indicates that someone they're looking for is frequently seen in Scraptown. Mak. Flight Unit falls loose from the Twisted Machinery. 03072_ The unstable cave ceiling collapses. 03383_ 5S-ZG9(R) destroyed. 03385_ The unstable cave ceiling collapses. 03393_ 8Z-LLL(R) suffers critical hit (Burn). 03396_ 8Z-LLL(R) affixes Scrap Shield Fragment to Scrap Shield. 03402_ Destroyed Scrap Shield. 03407_ The unstable cave ceiling collapses. 03407_ 8Z-LLL(R) destroyed. 03416_ The unstable cave ceiling collapses. 03431_ JE-BK0(R) destroyed. Map ----- +----------------------------------------------------+ | ?????????????????????????????????????????????????? | | ?????????????????????????????????????????????????? | | ?????????????????????????????????????????????????? | | ?????????????????????????????????????????????????? | | ?????????????????????????????????????????????????? | | ?????????????????????????????????????????????????? | | ?????????????????????????????????????????????????? | | ?????????????????????????????????????????????????? | | ?????????????????????????????????????????????????? | | ?????????????????????????????????????????????????? | | ?????????????????????????????????????????????????? | | ??????????????####???????????????????????????????? | | ?????????????## ##??????????????????????????????? | | ???????????### ##???????????????????????"?????? | | ??????????## ##??????#####??#####?"? ??????? | | ??????????# ## ##????? ### # " ???????? | | #?????????## ### ##????? "???????? | | ##?????????###?## #?????# "????????? | | #??????????????# ##?????# "#???????? | | #?????????###?## ###??????# # ""#??????? | | ##?????##### ### #??????### [ #???????? | | ??????## ## #?????## #???????? | | ??????# #????## # !%#???????? | | ####?## ##????#; #????????? | | ###" "" ##????## ##?????????? | | # " "#####?????# @ ##????????? | | ## " "## ####????# [% ##???????? | | ##### #????## R ####????? | | # ### ##????## #?? | | # # ##????### ## | | # "#????# ####### #?? ? | | # " # ""##???# #??### ###? ? | | ### ##??# #?## #??? #?? | | ?## # # #### #??# #????##??? | | ##" #### " # ## ## ##??# #????????? | | # #?## "" ###### #???## ##???????? | | # ### "" ##??# ##????# #???????? | | # ## ###" #??### ##????## ####???????? | | # #?#" ##????## ##??#### #??????????? | | # """ #####??????# #??## #??????????? | | # """ #??????????# #### ##??????????? | | ### ##??????????# #???????????? | | #?# ##???????????# #### #??????????? | | #?# ##????????????## ## ##??## #??????????? | | ##?? #??????????????## ## ????##??????????? | | #?? ##???????????????## ## ???????????????? | | #######?????????????????####### # ??????????????? | | #????????????????????????????? ## ?????????????? | | ###?#### ????????????????????? ? ????????????? | | ## ????????????????????" ?? #???????????? | +----------------------------------------------------+ Best States ------------- Heat Dissipation 25 Energy Generation 14 Energy Capacity 140 Matter Stores 300 Matter Capacity 300 Sight Range 16 Terrain Scan Density 10 Resistance: KI 35 Resistance: TH 35 Resistance: EX 35 Resistance: EM 35 Resistance: I 35 Resistance: S 35 Resistance: P 35 Evasion (%) 55 Targeting Accuracy 5 Offensive Hacking 20 Item Schematics ----------------- None Robot Schematics ------------------ None Fabricated ------------ Nothing Repaired ---------- Nothing Alien Tech Used ----------------- None Achievements -------------- None Challenges ------------ None Game ------ Seed PointyHugePod Manual? 0 Play Time 00:40:20 Cumulative 46.0 hours Start 2025.07.18 @ 10:38:32 End 2025.07.18 @ 11:21:16 Sessions 1 Manual Loads 0 Difficulty Explorer Special Mode None Game No. 20 Rogue 0 Adventurer 0 Explorer 20 Win Type - Total 0 Types 0/0/0/0/0/0/0/0/0/0 Lore% 15 Gallery% 20 Achievement% 18 Wizard Run 0 Options --------- Layout 0 ASCII 1 Keyboard 1 Movement Vi Keybinds 0 Fullscreen 2 Font 24/Smallcaps Map View 76x50 Zoom Use 0% Tactical HUD 1 Map Filters NONE Filters NONE Steam 0 RUN: 5470bdb7-e9fd-4dfd-b98e-2493db7333f2